[Event "Early-Titled-Tuesday-Blitz-November-28-2023"]
[Site "Chess.com"]
[Date "2023.11.28"]
[Round "5"]
[White "SmirnovTimofey2000"]
[Black "HanSchut"]
[Result "0-1"]
[WhiteElo "2065"]
[BlackElo "2288"]
[TimeControl "180+1"]
[EndTime "8:54:45 PST"]
[Termination "HanSchut won by resignation"]

1. d4 {[%clk 0:03:00.9]} 1... Nf6 {[%clk 0:02:58.7]} 2. Bf4 {[%clk 0:03:00.6]}
2... d5 {[%clk 0:02:58.8]} 3. e3 {[%clk 0:03:00.9]} 3... e6 {[%clk 0:02:59.3]}
4. Nd2 {[%clk 0:02:59.6]} 4... Bd6 {[%clk 0:02:59.8]} 5. Bg3 {[%clk 0:02:59.3]}
5... b6 {[%clk 0:02:59.7]} 6. c3 {[%clk 0:02:57.3]} 6... Bb7 {[%clk 0:03:00]} 7.
Ngf3 {[%clk 0:02:55.6]} 7... Ne4 {[%clk 0:03:00.3]} 8. Bxd6 {[%clk 0:02:52.4]}
8... cxd6 {[%clk 0:02:52.1]} 9. Bd3 {[%clk 0:02:49.7]} 9... O-O {[%clk
0:02:51.4]} 10. O-O {[%clk 0:02:47.9]} 10... f5 {[%clk 0:02:51.2]} 11. Rc1
{[%clk 0:02:27.2]} 11... Nd7 {[%clk 0:02:49.2]} 12. a4 {[%clk 0:02:24.4]} 12...
Kh8 {[%clk 0:02:42.6]} 13. c4 {[%clk 0:02:07.8]} 13... g5 {[%clk 0:02:32.2]} 14.
Bxe4 {[%clk 0:01:58.7]} 14... dxe4 {[%clk 0:02:26.7]} 15. Nxg5 {[%clk
0:01:58.9]} 15... Qxg5 {[%clk 0:02:23.4]} 16. c5 {[%clk 0:01:50.7]} 16... dxc5
{[%clk 0:02:19]} 17. dxc5 {[%clk 0:01:51.6]} 17... Nxc5 {[%clk 0:02:19.3]} 18.
Nc4 {[%clk 0:01:48.7]} 18... Nd3 {[%clk 0:02:14.7]} 19. Rc2 {[%clk 0:01:44.3]}
19... Bd5 {[%clk 0:02:07.6]} 20. Nd6 {[%clk 0:01:40.5]} 20... Qe7 {[%clk
0:01:47.5]} 21. Nb5 {[%clk 0:01:37.1]} 21... Bb3 {[%clk 0:01:43.4]} 22. Qd2
{[%clk 0:01:37]} 22... Bxc2 {[%clk 0:01:42.6]} 23. Qxc2 {[%clk 0:01:37.9]} 23...
Rac8 {[%clk 0:01:37.7]} 24. Qd2 {[%clk 0:01:37.3]} 24... Rfd8 {[%clk 0:01:33.9]}
25. Nxa7 {[%clk 0:01:35.5]} 25... Qxa7 {[%clk 0:01:32.6]} 0-1

[Event "Early-Titled-Tuesday-Blitz-November-28-2023"]
[Site "Chess.com"]
[Date "2023.11.28"]
[Round "5"]
[White "GothamChess"]
[Black "HajiyevKanan"]
[Result "0-1"]
[WhiteElo "2663"]
[BlackElo "2509"]
[TimeControl "180+1"]
[EndTime "8:54:47 PST"]
[Termination "HajiyevKanan won by resignation"]

1. d4 {[%clk 0:03:00.9]} 1... d5 {[%clk 0:02:59.3]} 2. Bg5 {[%clk 0:03:00.5]}
2... c5 {[%clk 0:02:59.3]} 3. dxc5 {[%clk 0:03:00.6]} 3... h6 {[%clk 0:02:56.4]}
4. Bh4 {[%clk 0:03:00.7]} 4... g5 {[%clk 0:02:57]} 5. Bg3 {[%clk 0:03:00.9]}
5... Bg7 {[%clk 0:02:57.7]} 6. c3 {[%clk 0:03:00.6]} 6... Na6 {[%clk 0:02:55.2]}
7. e4 {[%clk 0:02:59.3]} 7... dxe4 {[%clk 0:02:52.1]} 8. Qxd8+ {[%clk
0:02:43.6]} 8... Kxd8 {[%clk 0:02:53]} 9. Bxa6 {[%clk 0:02:43.1]} 9... bxa6
{[%clk 0:02:53]} 10. f3 {[%clk 0:02:30.4]} 10... Bb7 {[%clk 0:02:40.7]} 11. Nd2
{[%clk 0:02:26.8]} 11... e3 {[%clk 0:02:36.1]} 12. Nc4 {[%clk 0:02:20.6]} 12...
f5 {[%clk 0:02:36.3]} 13. O-O-O+ {[%clk 0:01:57]} 13... Ke8 {[%clk 0:02:31.1]}
14. Na5 {[%clk 0:01:51.2]} 14... Bc8 {[%clk 0:02:18.3]} 15. Bc7 {[%clk
0:01:34.6]} 15... Be6 {[%clk 0:02:07.2]} 16. Nc6 {[%clk 0:00:26]} 0-1

[Event "Early-Titled-Tuesday-Blitz-November-28-2023"]
[Site "Chess.com"]
[Date "2023.11.28"]
[Round "5"]
[White "whitemirrorninja"]
[Black "RobertoJBM"]
[Result "0-1"]
[WhiteElo "2512"]
[BlackElo "2812"]
[TimeControl "180+1"]
[EndTime "8:55:01 PST"]
[Termination "RobertoJBM won by resignation"]

1. e4 {[%clk 0:03:00.9]} 1... c6 {[%clk 0:02:58]} 2. Nc3 {[%clk 0:03:00.3]} 2...
d5 {[%clk 0:02:58.9]} 3. Nf3 {[%clk 0:03:00.4]} 3... dxe4 {[%clk 0:02:59.4]} 4.
Nxe4 {[%clk 0:03:01.3]} 4... Bg4 {[%clk 0:02:59.5]} 5. Bc4 {[%clk 0:02:59.8]}
5... e6 {[%clk 0:02:56.7]} 6. h3 {[%clk 0:02:57.7]} 6... Bh5 {[%clk 0:02:55.6]}
7. d3 {[%clk 0:02:50.4]} 7... Nd7 {[%clk 0:02:53.5]} 8. Bd2 {[%clk 0:02:42.6]}
8... Ne5 {[%clk 0:02:46.6]} 9. g4 {[%clk 0:02:39.6]} 9... Nxc4 {[%clk
0:02:46.3]} 10. gxh5 {[%clk 0:02:32.7]} 10... Nxd2 {[%clk 0:02:44.5]} 11. Qxd2
{[%clk 0:02:32.8]} 11... Nf6 {[%clk 0:02:42.5]} 12. Nxf6+ {[%clk 0:02:09.6]}
12... Qxf6 {[%clk 0:02:39.9]} 13. Qe3 {[%clk 0:02:05.3]} 13... Qxb2 {[%clk
0:02:26]} 14. O-O {[%clk 0:02:03.2]} 14... Qb6 {[%clk 0:02:04.8]} 15. Qxb6
{[%clk 0:01:59.4]} 15... axb6 {[%clk 0:02:04.3]} 16. a4 {[%clk 0:01:59.8]} 16...
Bd6 {[%clk 0:02:00.7]} 17. Rfb1 {[%clk 0:01:59.1]} 17... Bc7 {[%clk 0:02:00.8]}
18. c4 {[%clk 0:01:58.7]} 18... Ra7 {[%clk 0:01:56.4]} 19. Nd4 {[%clk
0:01:41.3]} 19... Kd7 {[%clk 0:01:54.7]} 20. Ne2 {[%clk 0:01:41.5]} 20... Rha8
{[%clk 0:01:42.5]} 21. Nc3 {[%clk 0:01:33.2]} 21... Be5 {[%clk 0:01:37.8]} 22.
d4 {[%clk 0:01:33.8]} 22... Bxd4 {[%clk 0:01:37.8]} 23. Rd1 {[%clk 0:01:34.4]}
23... e5 {[%clk 0:01:36.4]} 24. Ne2 {[%clk 0:01:30.2]} 24... Rxa4 {[%clk
0:01:28.6]} 25. Nxd4 {[%clk 0:01:27.8]} 25... Rxa1 {[%clk 0:01:22.2]} 26. Nb3+
{[%clk 0:01:22.6]} 26... Rxd1+ {[%clk 0:01:21.5]} 0-1

[Event "Early-Titled-Tuesday-Blitz-November-28-2023"]
[Site "Chess.com"]
[Date "2023.11.28"]
[Round "5"]
[White "Chess4always"]
[Black "elchacal664"]
[Result "0-1"]
[WhiteElo "2043"]
[BlackElo "2343"]
[TimeControl "180+1"]
[EndTime "8:55:19 PST"]
[Termination "elchacal664 won by resignation"]

1. d4 {[%clk 0:03:00.9]} 1... e5 {[%clk 0:02:58.9]} 2. c3 {[%clk 0:02:58.8]}
2... Nc6 {[%clk 0:02:55]} 3. d5 {[%clk 0:02:57.2]} 3... Nce7 {[%clk 0:02:54]} 4.
e3 {[%clk 0:02:57.8]} 4... d6 {[%clk 0:02:48.5]} 5. e4 {[%clk 0:02:58]} 5... Nf6
{[%clk 0:02:46.2]} 6. f3 {[%clk 0:02:57.7]} 6... c5 {[%clk 0:02:42.7]} 7. Bb5+
{[%clk 0:02:56]} 7... Bd7 {[%clk 0:02:42.3]} 8. Qa4 {[%clk 0:02:56.6]} 8... a6
{[%clk 0:02:41.4]} 9. Bxd7+ {[%clk 0:02:56.3]} 9... Nxd7 {[%clk 0:02:40.8]} 10.
c4 {[%clk 0:02:53.6]} 10... g6 {[%clk 0:02:38.4]} 11. Nc3 {[%clk 0:02:53.9]}
11... Bg7 {[%clk 0:02:38.5]} 12. h4 {[%clk 0:02:52.9]} 12... h6 {[%clk
0:02:37.6]} 13. Nge2 {[%clk 0:02:52.5]} 13... f5 {[%clk 0:02:36.3]} 14. g4
{[%clk 0:02:40.1]} 14... fxg4 {[%clk 0:02:34.1]} 15. fxg4 {[%clk 0:02:41]} 15...
O-O {[%clk 0:02:34]} 16. Be3 {[%clk 0:02:35.1]} 16... Nf6 {[%clk 0:02:29.1]} 17.
g5 {[%clk 0:02:31]} 17... Ng4 {[%clk 0:02:28.7]} 18. gxh6 {[%clk 0:02:19.3]}
18... Nxe3 {[%clk 0:02:18]} 19. hxg7 {[%clk 0:02:18.5]} 19... Kxg7 {[%clk
0:02:14.9]} 20. Kd2 {[%clk 0:02:11.6]} 20... Rf3 {[%clk 0:02:07.5]} 21. h5
{[%clk 0:02:01.9]} 21... b5 {[%clk 0:02:07.4]} 22. cxb5 {[%clk 0:01:39]} 22...
axb5 {[%clk 0:02:07]} 23. Qb3 {[%clk 0:01:21.8]} 23... b4 {[%clk 0:01:57.6]} 24.
Nd1 {[%clk 0:01:12.7]} 24... Nf1+ {[%clk 0:01:52.7]} 25. Rxf1 {[%clk 0:01:09.1]}
25... Rxb3 {[%clk 0:01:52.3]} 26. axb3 {[%clk 0:01:02.8]} 26... Rxa1 {[%clk
0:01:53.2]} 27. h6+ {[%clk 0:01:02.1]} 27... Kxh6 {[%clk 0:01:50.3]} 28. Rf7
{[%clk 0:01:02.5]} 28... Ng8 {[%clk 0:01:48]} 29. Ne3 {[%clk 0:01:01.7]} 29...
Qg5 {[%clk 0:01:47]} 30. Rf3 {[%clk 0:00:58.9]} 30... Nf6 {[%clk 0:01:42]} 31.
Rg3 {[%clk 0:00:58.5]} 31... Nxe4+ {[%clk 0:01:41]} 0-1

[Event "Early-Titled-Tuesday-Blitz-November-28-2023"]
[Site "Chess.com"]
[Date "2023.11.28"]
[Round "5"]
[White "vladoboch"]
[Black "sergeikim"]
[Result "1-0"]
[WhiteElo "2442"]
[BlackElo "2584"]
[TimeControl "180+1"]
[EndTime "8:55:32 PST"]
[Termination "vladoboch won by resignation"]

1. e4 {[%clk 0:03:00.9]} 1... e5 {[%clk 0:03:00.1]} 2. Nf3 {[%clk 0:03:01.1]}
2... Nc6 {[%clk 0:03:00.3]} 3. Bc4 {[%clk 0:03:01.2]} 3... Bc5 {[%clk
0:02:59.3]} 4. c3 {[%clk 0:03:01.1]} 4... Nf6 {[%clk 0:02:59.6]} 5. d3 {[%clk
0:03:01.4]} 5... d6 {[%clk 0:02:59.8]} 6. Nbd2 {[%clk 0:03:01.7]} 6... a6 {[%clk
0:03:00.2]} 7. Bb3 {[%clk 0:03:01.8]} 7... Ba7 {[%clk 0:03:00.3]} 8. Nf1 {[%clk
0:03:01.9]} 8... O-O {[%clk 0:03:00]} 9. Ng3 {[%clk 0:03:02.2]} 9... Be6 {[%clk
0:02:59]} 10. O-O {[%clk 0:03:01.6]} 10... h6 {[%clk 0:02:56.7]} 11. h3 {[%clk
0:03:00.8]} 11... Ne7 {[%clk 0:02:52.9]} 12. Nh4 {[%clk 0:03:00.5]} 12... c6
{[%clk 0:02:48.6]} 13. Qf3 {[%clk 0:03:00.3]} 13... Nh7 {[%clk 0:02:45.5]} 14.
Bc2 {[%clk 0:02:42.5]} 14... Qd7 {[%clk 0:02:31.3]} 15. Nhf5 {[%clk 0:02:27.5]}
15... Nxf5 {[%clk 0:02:23.4]} 16. exf5 {[%clk 0:02:27.9]} 16... Bd5 {[%clk
0:02:23.4]} 17. Qg4 {[%clk 0:02:28.8]} 17... Nf6 {[%clk 0:02:21.4]} 18. Qh4
{[%clk 0:02:26.8]} 18... Qd8 {[%clk 0:02:17.2]} 19. c4 {[%clk 0:02:22.5]} 19...
Be6 {[%clk 0:02:10.9]} 20. fxe6 {[%clk 0:02:21.5]} 20... fxe6 {[%clk 0:02:11.8]}
21. Be3 {[%clk 0:02:16.7]} 21... Qe8 {[%clk 0:02:10.6]} 22. Bxa7 {[%clk
0:02:14.7]} 22... Rxa7 {[%clk 0:02:10.6]} 23. Ne4 {[%clk 0:02:13.5]} 23... d5
{[%clk 0:02:02.2]} 24. Nxf6+ {[%clk 0:02:11.5]} 24... Rxf6 {[%clk 0:02:02.3]}
25. cxd5 {[%clk 0:02:10.6]} 25... exd5 {[%clk 0:02:01.9]} 26. Rae1 {[%clk
0:02:05.3]} 26... b5 {[%clk 0:02:01.6]} 27. Qd4 {[%clk 0:01:56.6]} 27... Re7
{[%clk 0:02:00.9]} 28. Qc5 {[%clk 0:01:54.2]} 28... Qf7 {[%clk 0:01:52.4]} 29.
f4 {[%clk 0:01:49.3]} 29... Rf5 {[%clk 0:01:23.3]} 30. fxe5 {[%clk 0:01:45.6]}
30... Rexe5 {[%clk 0:01:20.9]} 31. d4 {[%clk 0:01:31.1]} 31... Rxe1 {[%clk
0:01:17.9]} 32. Rxe1 {[%clk 0:01:30.6]} 32... Rf2 {[%clk 0:01:17.7]} 33. Qxc6
{[%clk 0:01:25.8]} 1-0

[Event "Early-Titled-Tuesday-Blitz-November-28-2023"]
[Site "Chess.com"]
[Date "2023.11.28"]
[Round "5"]
[White "Ramla2020"]
[Black "MIss_MIaMI"]
[Result "0-1"]
[WhiteElo "2552"]
[BlackElo "2410"]
[TimeControl "180+1"]
[EndTime "8:55:32 PST"]
[Termination "MIss_MIaMI won on time"]

1. c4 {[%clk 0:03:00.5]} 1... e5 {[%clk 0:02:59.2]} 2. g3 {[%clk 0:03:00.3]}
2... f5 {[%clk 0:02:59.6]} 3. Bg2 {[%clk 0:02:59.8]} 3... Nf6 {[%clk 0:03:00.4]}
4. Nc3 {[%clk 0:02:59.4]} 4... Bb4 {[%clk 0:03:00.6]} 5. Nd5 {[%clk 0:02:58.8]}
5... Nxd5 {[%clk 0:02:59.7]} 6. cxd5 {[%clk 0:02:58.8]} 6... O-O {[%clk
0:02:50.3]} 7. a3 {[%clk 0:02:58.5]} 7... Be7 {[%clk 0:02:49.7]} 8. b4 {[%clk
0:02:55.3]} 8... d6 {[%clk 0:02:47.3]} 9. Bb2 {[%clk 0:02:54.8]} 9... Bf6 {[%clk
0:02:47.4]} 10. e3 {[%clk 0:02:45.7]} 10... f4 {[%clk 0:02:38.8]} 11. Be4 {[%clk
0:02:40.1]} 11... Qe8 {[%clk 0:02:20.5]} 12. Ne2 {[%clk 0:02:29.9]} 12... Bh3
{[%clk 0:02:07.8]} 13. gxf4 {[%clk 0:02:21.1]} 13... exf4 {[%clk 0:02:04]} 14.
Bxf6 {[%clk 0:02:21.2]} 14... Qxe4 {[%clk 0:02:00]} 15. Nxf4 {[%clk 0:02:03.6]}
15... Qxh1+ {[%clk 0:01:54.3]} 16. Ke2 {[%clk 0:02:03.5]} 16... Bg4+ {[%clk
0:01:54.5]} 0-1

[Event "Early-Titled-Tuesday-Blitz-November-28-2023"]
[Site "Chess.com"]
[Date "2023.11.28"]
[Round "5"]
[White "Gabix_94"]
[Black "LeoLV10"]
[Result "1-0"]
[WhiteElo "2762"]
[BlackElo "2540"]
[TimeControl "180+1"]
[EndTime "8:55:35 PST"]
[Termination "Gabix_94 won by resignation"]

1. d4 {[%clk 0:03:00.9]} 1... Nf6 {[%clk 0:02:59.7]} 2. Nc3 {[%clk 0:03:01.5]}
2... e6 {[%clk 0:03:00.3]} 3. Bf4 {[%clk 0:03:02]} 3... d5 {[%clk 0:02:58.9]} 4.
e3 {[%clk 0:03:01.4]} 4... Bd6 {[%clk 0:02:57.9]} 5. Nf3 {[%clk 0:02:59]} 5...
O-O {[%clk 0:02:55.9]} 6. h4 {[%clk 0:02:57.3]} 6... c5 {[%clk 0:02:53]} 7. dxc5
{[%clk 0:02:54]} 7... Bxc5 {[%clk 0:02:53.2]} 8. Bd3 {[%clk 0:02:51.7]} 8... Nc6
{[%clk 0:02:52.1]} 9. Qe2 {[%clk 0:02:44.6]} 9... Re8 {[%clk 0:02:51.8]} 10. Ne5
{[%clk 0:02:41.8]} 10... Nxe5 {[%clk 0:02:33.1]} 11. Bxe5 {[%clk 0:02:42.7]}
11... Nd7 {[%clk 0:02:33.4]} 12. Bg3 {[%clk 0:02:39.6]} 12... Nf6 {[%clk
0:02:29.1]} 13. O-O-O {[%clk 0:02:36.7]} 13... e5 {[%clk 0:02:24.9]} 14. h5
{[%clk 0:02:33.3]} 14... Bg4 {[%clk 0:02:16.1]} 15. f3 {[%clk 0:02:31.9]} 15...
Bxh5 {[%clk 0:02:14.1]} 16. Bh4 {[%clk 0:02:27.6]} 16... e4 {[%clk 0:01:26.1]}
17. Bxf6 {[%clk 0:02:11.5]} 17... Qxf6 {[%clk 0:01:20.8]} 18. Rxh5 {[%clk
0:02:11.7]} 18... exd3 {[%clk 0:01:20.1]} 19. Qxd3 {[%clk 0:02:12]} 19... Bxe3+
{[%clk 0:00:51.9]} 20. Kb1 {[%clk 0:02:10.2]} 20... g6 {[%clk 0:00:52.1]} 21.
Nxd5 {[%clk 0:02:09.1]} 21... Qe6 {[%clk 0:00:47.5]} 22. Rh4 {[%clk 0:02:05.1]}
22... Rad8 {[%clk 0:00:43.1]} 23. Re4 {[%clk 0:02:03.8]} 23... Qd6 {[%clk
0:00:10.9]} 24. Rxe3 {[%clk 0:01:57.1]} 1-0

[Event "Early-Titled-Tuesday-Blitz-November-28-2023"]
[Site "Chess.com"]
[Date "2023.11.28"]
[Round "5"]
[White "stratacticos"]
[Black "gpsji27"]
[Result "0-1"]
[WhiteElo "1736"]
[BlackElo "2328"]
[TimeControl "180+1"]
[EndTime "8:55:40 PST"]
[Termination "gpsji27 won by resignation"]

1. e4 {[%clk 0:02:42.6]} 1... e5 {[%clk 0:02:59]} 2. Nf3 {[%clk 0:02:38.7]} 2...
Nc6 {[%clk 0:02:57.2]} 3. Bc4 {[%clk 0:02:37.5]} 3... Bc5 {[%clk 0:02:54.6]} 4.
O-O {[%clk 0:02:36.4]} 4... d6 {[%clk 0:02:49.1]} 5. h3 {[%clk 0:02:36.1]} 5...
Nf6 {[%clk 0:02:47]} 6. Re1 {[%clk 0:02:35]} 6... Be6 {[%clk 0:02:44.1]} 7. Bb5
{[%clk 0:02:27.4]} 7... Bb6 {[%clk 0:02:42.5]} 8. c3 {[%clk 0:02:23.6]} 8... O-O
{[%clk 0:02:41.5]} 9. d4 {[%clk 0:02:23.4]} 9... exd4 {[%clk 0:02:41.2]} 10.
Bxc6 {[%clk 0:02:22.5]} 10... bxc6 {[%clk 0:02:41.1]} 11. cxd4 {[%clk
0:02:22.7]} 11... d5 {[%clk 0:02:41.3]} 12. e5 {[%clk 0:02:19.8]} 12... Ne4
{[%clk 0:02:41.5]} 13. Nc3 {[%clk 0:02:17.9]} 13... Bf5 {[%clk 0:02:35.5]} 14.
Be3 {[%clk 0:02:01.2]} 14... Qd7 {[%clk 0:02:25.1]} 15. Ng5 {[%clk 0:01:55.9]}
15... Nxg5 {[%clk 0:02:15.6]} 16. Bxg5 {[%clk 0:01:55.1]} 16... h6 {[%clk
0:02:09.6]} 17. Be3 {[%clk 0:01:41.4]} 17... f6 {[%clk 0:02:06.6]} 18. Qd2
{[%clk 0:01:14.9]} 18... fxe5 {[%clk 0:02:02.1]} 19. dxe5 {[%clk 0:01:14.3]}
19... d4 {[%clk 0:02:02.6]} 20. Rad1 {[%clk 0:01:13.2]} 20... dxe3 {[%clk
0:02:00.4]} 21. Qxd7 {[%clk 0:00:50.9]} 21... Bxd7 {[%clk 0:01:53.3]} 22. fxe3
{[%clk 0:00:46.7]} 22... Be6 {[%clk 0:01:52.6]} 23. Na4 {[%clk 0:00:39.4]} 23...
Rad8 {[%clk 0:01:52]} 24. Nxb6 {[%clk 0:00:38.4]} 24... axb6 {[%clk 0:01:52]}
25. b3 {[%clk 0:00:36.8]} 25... Kf7 {[%clk 0:01:49.2]} 0-1

[Event "Early-Titled-Tuesday-Blitz-November-28-2023"]
[Site "Chess.com"]
[Date "2023.11.28"]
[Round "5"]
[White "Witty_Alien"]
[Black "alvarorodriguezavila"]
[Result "0-1"]
[WhiteElo "2237"]
[BlackElo "2228"]
[TimeControl "180+1"]
[EndTime "8:55:42 PST"]
[Termination "alvarorodriguezavila won by resignation"]

1. e4 {[%clk 0:03:00.9]} 1... c5 {[%clk 0:02:58.9]} 2. Nf3 {[%clk 0:02:59.8]}
2... d6 {[%clk 0:02:59.1]} 3. d4 {[%clk 0:03:00]} 3... cxd4 {[%clk 0:02:59.7]}
4. Nxd4 {[%clk 0:03:00.9]} 4... Nf6 {[%clk 0:03:00]} 5. Nc3 {[%clk 0:03:01.6]}
5... Nc6 {[%clk 0:03:00.6]} 6. Nd5 {[%clk 0:03:01.3]} 6... Nxd5 {[%clk
0:02:59.3]} 7. Nxc6 {[%clk 0:02:58.7]} 7... bxc6 {[%clk 0:02:55]} 8. exd5 {[%clk
0:02:59]} 8... Qa5+ {[%clk 0:02:54.1]} 9. Bd2 {[%clk 0:02:59.7]} 9... Qxd5
{[%clk 0:02:54.1]} 10. Be2 {[%clk 0:03:00.4]} 10... Bd7 {[%clk 0:02:48.7]} 11.
O-O {[%clk 0:02:55.6]} 11... e5 {[%clk 0:02:46.9]} 12. c4 {[%clk 0:02:13.9]}
12... Qe6 {[%clk 0:02:47]} 13. f4 {[%clk 0:02:12.4]} 13... Be7 {[%clk
0:02:41.8]} 14. f5 {[%clk 0:00:49.9]} 14... Qf6 {[%clk 0:02:41.1]} 15. Bd3
{[%clk 0:00:29.6]} 15... O-O {[%clk 0:02:38.4]} 16. Be4 {[%clk 0:00:24.6]} 16...
Rab8 {[%clk 0:02:35.1]} 17. b3 {[%clk 0:00:24.7]} 17... Rfd8 {[%clk 0:02:34.9]}
18. Be3 {[%clk 0:00:24.7]} 18... d5 {[%clk 0:02:31.7]} 19. cxd5 {[%clk
0:00:23.9]} 19... cxd5 {[%clk 0:02:32.2]} 20. Qxd5 {[%clk 0:00:14.7]} 20... Bb5
{[%clk 0:02:31.9]} 21. Rfd1 {[%clk 0:00:03.3]} 21... Rxd5 {[%clk 0:02:31.2]} 22.
Bxd5 {[%clk 0:00:04.2]} 22... Rd8 {[%clk 0:02:24.3]} 23. Bxa7 {[%clk 0:00:03.4]}
23... Qa6 {[%clk 0:02:09.3]} 24. Be3 {[%clk 0:00:02.5]} 24... Bd3 {[%clk
0:02:08.8]} 25. f6 {[%clk 0:00:02.2]} 25... Bxf6 {[%clk 0:02:06.3]} 26. a4
{[%clk 0:00:01.9]} 26... Rxd5 {[%clk 0:02:05.4]} 27. Rac1 {[%clk 0:00:01.7]}
27... h6 {[%clk 0:02:03.8]} 0-1

[Event "Early-Titled-Tuesday-Blitz-November-28-2023"]
[Site "Chess.com"]
[Date "2023.11.28"]
[Round "5"]
[White "Zurability"]
[Black "GatoRojo150"]
[Result "1-0"]
[WhiteElo "2862"]
[BlackElo "2611"]
[TimeControl "180+1"]
[EndTime "8:55:55 PST"]
[Termination "Zurability won on time"]

1. c4 {[%clk 0:03:00.9]} 1... e5 {[%clk 0:02:59.2]} 2. Nc3 {[%clk 0:03:01]} 2...
Nf6 {[%clk 0:02:58.8]} 3. Nf3 {[%clk 0:03:01.6]} 3... e4 {[%clk 0:02:58.4]} 4.
Ng5 {[%clk 0:03:01.7]} 4... c6 {[%clk 0:02:58]} 5. Ngxe4 {[%clk 0:03:00.4]} 5...
Nxe4 {[%clk 0:02:58.9]} 6. Nxe4 {[%clk 0:03:00.9]} 6... d5 {[%clk 0:02:59.3]} 7.
cxd5 {[%clk 0:03:01.8]} 7... cxd5 {[%clk 0:03:00.2]} 8. Ng3 {[%clk 0:03:01.9]}
8... h5 {[%clk 0:03:00.6]} 9. e3 {[%clk 0:02:45.5]} 9... h4 {[%clk 0:02:57]} 10.
Ne2 {[%clk 0:02:45.1]} 10... Nc6 {[%clk 0:02:56.8]} 11. d4 {[%clk 0:02:38.1]}
11... Qf6 {[%clk 0:02:56.8]} 12. Nf4 {[%clk 0:02:36]} 12... Bd6 {[%clk
0:02:54.9]} 13. Be2 {[%clk 0:02:28]} 13... Bf5 {[%clk 0:02:25.5]} 14. Nxd5
{[%clk 0:02:22.9]} 14... Qg6 {[%clk 0:02:19.2]} 15. Bf3 {[%clk 0:02:21.2]} 15...
O-O-O {[%clk 0:02:18.2]} 16. Bd2 {[%clk 0:02:13.4]} 16... Bd3 {[%clk 0:02:12.4]}
17. Qb3 {[%clk 0:02:11.1]} 17... Rhe8 {[%clk 0:01:52.6]} 18. Rc1 {[%clk
0:02:08.9]} 18... Be4 {[%clk 0:01:35.9]} 19. Qb5 {[%clk 0:01:47.6]} 19... Bb8
{[%clk 0:01:17]} 20. Nb4 {[%clk 0:01:47.5]} 20... Bxf3 {[%clk 0:00:55.3]} 21.
gxf3 {[%clk 0:01:48.4]} 21... Rd6 {[%clk 0:00:50.4]} 22. d5 {[%clk 0:01:45.8]}
22... Qg2 {[%clk 0:00:26.3]} 23. dxc6 {[%clk 0:01:45.5]} 23... Qxh1+ {[%clk
0:00:12.9]} 24. Ke2 {[%clk 0:01:45]} 24... Rxd2+ {[%clk 0:00:13]} 25. Kxd2
{[%clk 0:01:45.5]} 25... Rd8+ {[%clk 0:00:04.9]} 26. Ke2 {[%clk 0:01:45.2]} 1-0

[Event "Early-Titled-Tuesday-Blitz-November-28-2023"]
[Site "Chess.com"]
[Date "2023.11.28"]
[Round "5"]
[White "platy3"]
[Black "Let_it_be_1"]
[Result "1-0"]
[WhiteElo "2885"]
[BlackElo "2664"]
[TimeControl "180+1"]
[EndTime "8:56:03 PST"]
[Termination "platy3 won by resignation"]

1. c4 {[%clk 0:03:00.9]} 1... e6 {[%clk 0:02:59.9]} 2. Nc3 {[%clk 0:03:01.3]}
2... d5 {[%clk 0:03:00.5]} 3. d4 {[%clk 0:03:01.4]} 3... Be7 {[%clk 0:03:00.8]}
4. cxd5 {[%clk 0:03:01.2]} 4... exd5 {[%clk 0:03:01.3]} 5. Bf4 {[%clk
0:03:01.8]} 5... c6 {[%clk 0:03:01.7]} 6. e3 {[%clk 0:03:02.4]} 6... Bf5 {[%clk
0:03:01.9]} 7. Bd3 {[%clk 0:03:00.3]} 7... Bxd3 {[%clk 0:03:01.8]} 8. Qxd3
{[%clk 0:03:00.8]} 8... Nf6 {[%clk 0:03:02.5]} 9. Nge2 {[%clk 0:03:01.3]} 9...
Nbd7 {[%clk 0:03:02.4]} 10. h3 {[%clk 0:03:00]} 10... O-O {[%clk 0:03:02.3]} 11.
O-O {[%clk 0:03:00.3]} 11... Re8 {[%clk 0:03:02.5]} 12. Bh2 {[%clk 0:02:56]}
12... a5 {[%clk 0:02:59.9]} 13. Rad1 {[%clk 0:02:37.3]} 13... Bf8 {[%clk
0:02:52.5]} 14. Qc2 {[%clk 0:02:37.5]} 14... b5 {[%clk 0:02:44.6]} 15. a4 {[%clk
0:02:26]} 15... b4 {[%clk 0:02:39.6]} 16. Nb1 {[%clk 0:02:26.3]} 16... Rc8
{[%clk 0:02:39.3]} 17. Nd2 {[%clk 0:02:24.3]} 17... c5 {[%clk 0:02:34.4]} 18.
dxc5 {[%clk 0:02:23.2]} 18... Nxc5 {[%clk 0:02:33]} 19. Nd4 {[%clk 0:02:19.1]}
19... Qd7 {[%clk 0:02:26.8]} 20. N2b3 {[%clk 0:01:58.5]} 20... Nxa4 {[%clk
0:01:53.3]} 21. Qe2 {[%clk 0:01:58.5]} 21... Ne4 {[%clk 0:01:40.4]} 22. Nxa5
{[%clk 0:01:54.1]} 22... Bd6 {[%clk 0:01:20]} 23. Bxd6 {[%clk 0:01:50.1]} 23...
Qxd6 {[%clk 0:01:20.3]} 24. Nab3 {[%clk 0:01:44.4]} 24... Nb6 {[%clk 0:01:11]}
25. Qg4 {[%clk 0:01:38.4]} 25... g6 {[%clk 0:01:06.1]} 26. Nd2 {[%clk
0:01:34.1]} 26... Qe5 {[%clk 0:01:01.6]} 27. Nxe4 {[%clk 0:01:27.4]} 27... dxe4
{[%clk 0:01:00]} 28. Rc1 {[%clk 0:01:24.8]} 28... f5 {[%clk 0:00:54.6]} 29. Qe2
{[%clk 0:01:23]} 29... f4 {[%clk 0:00:44.2]} 30. Qa6 {[%clk 0:01:21.3]} 30...
Nd5 {[%clk 0:00:37.6]} 31. Rxc8 {[%clk 0:01:20.3]} 1-0